[Event "Open Cappelle-la-Grande"]
[Date "2026.02.22"]
[White "Laignel, Quentin"]
[Black "Lamaze, Simon"]
[WhiteElo "2227"]
[BlackElo "2450"]
[Round "2.2.13"]
[Result "0-1"]
[TimeControl "40/5400+30:1800+30"]

d4 {[%clk 1:30:50]} Nf6 {[%clk 1:28:50]} Nf3 {[%clk 1:30:40]} g6 {[%clk
1:29:11]} c4 {[%clk 1:30:38]} Bg7 {[%clk 1:29:36]} Nc3 {[%clk 1:30:11]} O-O
{[%clk 1:29:58]} e4 {[%clk 1:30:24]} d6 {[%clk 1:30:24]} Be2 {[%clk 1:29:21]} e5
{[%clk 1:30:47]} O-O {[%clk 1:28:54]} Nc6 {[%clk 1:31:12]} d5 {[%clk 1:28:38]}
Ne7 {[%clk 1:31:37]} b4 {[%clk 1:27:13]} a5 {[%clk 1:32:03]} bxa5 {[%clk
1:25:36]} Rxa5 {[%clk 1:32:21]} Nd2 {[%clk 1:25:48]} Ra8 {[%clk 1:29:12]} a4
{[%clk 1:20:52]} Ne8 {[%clk 1:25:48]} Nb3 {[%clk 1:16:05]} f5 {[%clk 1:22:39]}
c5 {[%clk 1:12:11]} fxe4 {[%clk 1:21:31]} Nxe4 {[%clk 1:11:04]} Nf5 {[%clk
1:12:04]} a5 {[%clk 1:04:58]} Nf6 {[%clk 1:07:40]} Nxf6+ {[%clk 0:59:54]} Bxf6
{[%clk 1:06:35]} Ra4 {[%clk 0:58:26]} Rf7 {[%clk 0:58:48]} Rb4 {[%clk 0:48:54]}
Nd4 {[%clk 0:54:46]} Nxd4 {[%clk 0:41:25]} exd4 {[%clk 0:55:08]} cxd6 {[%clk
0:41:45]} cxd6 {[%clk 0:52:36]} Bb2 {[%clk 0:35:23]} Qxa5 {[%clk 0:50:05]} Qd2
{[%clk 0:33:33]} Bf5 {[%clk 0:37:40]} Bxd4 {[%clk 0:31:58]} Bxd4 {[%clk
0:36:18]} Qxd4 {[%clk 0:32:03]} Re8 {[%clk 0:35:05]} Bf3 {[%clk 0:29:30]} Bd3
{[%clk 0:34:20]} Rd1 {[%clk 0:27:10]} b5 {[%clk 0:26:14]} h4 {[%clk 0:26:06]}
Bc4 {[%clk 0:25:22]} Rbb1 {[%clk 0:25:08]} Qa7 {[%clk 0:24:08]} Qg4 {[%clk
0:24:00]} Re5 {[%clk 0:20:03]} Qg3 {[%clk 0:21:26]} Kg7 {[%clk 0:15:04]} Re1
{[%clk 0:18:29]} Rfe7 {[%clk 0:13:38]} Rxe5 {[%clk 0:16:57]} Rxe5 {[%clk
0:13:59]} Kh2 {[%clk 0:15:25]} Qe7 {[%clk 0:06:57]} Rd1 {[%clk 0:13:47]} Qf6
{[%clk 0:07:12]} Qg4 {[%clk 0:10:32]} Re7 {[%clk 0:07:06]} h5 {[%clk 0:08:11]}
Qe5+ {[%clk 0:07:04]} Kg1 {[%clk 0:08:14]} Qxh5 {[%clk 0:06:36]} Qxh5 {[%clk
0:05:09]} gxh5 {[%clk 0:07:04]} Kh2 {[%clk 0:03:13]} b4 {[%clk 0:01:43]} Rd4
{[%clk 0:02:44]} Rc7 {[%clk 0:02:05]} Kg3 {[%clk 0:02:51]} b3 {[%clk 0:00:53]}
Be4 {[%clk 0:03:05]} Rc5 {[%clk 0:23:41]} Rd2 {[%clk 0:30:40]} Rb5 {[%clk
0:18:42]} Rd4 {[%clk 0:30:03]} Rc5 {[%clk 0:18:49]} Rd2 {[%clk 0:30:24]} Bb5
{[%clk 0:18:32]} Kf4 {[%clk 0:29:33]} Be8 {[%clk 0:16:51]} Rb2 {[%clk 0:20:47]}
Rc3 {[%clk 0:15:27]} Kg5 {[%clk 0:20:17]} Bg6 {[%clk 0:14:54]} f3 {[%clk
0:20:30]} h6+ {[%clk 0:10:00]} Kf4 {[%clk 0:20:32]} h4 {[%clk 0:07:42]} Bxg6
{[%clk 0:11:54]} Kxg6 {[%clk 0:07:59]} Kg4 {[%clk 0:12:17]} Rc4+ {[%clk
0:07:59]} f4 {[%clk 0:12:30]} Rb4 {[%clk 0:07:40]} Kh3 {[%clk 0:11:59]} Kh5
{[%clk 0:06:23]}

[Variant "Standard"]
[Site "Europe Echecs"]

[Event "Open Cappelle-la-Grande"]
[Date "2026.02.22"]
[White "Siekanska, Maria"]
[Black "Levin, Guy"]
[WhiteElo "2223"]
[BlackElo "2440"]
[Round "2.2.14"]
[Result "0-1"]
[TimeControl "40/5400+30:1800+30"]

d4 {[%clk 1:30:13]} d5 {[%clk 1:30:45]} c4 {[%clk 1:30:34]} dxc4 {[%clk
1:31:11]} e4 {[%clk 1:30:59]} Nf6 {[%clk 1:28:59]} e5 {[%clk 1:31:22]} Nd5
{[%clk 1:29:26]} Bxc4 {[%clk 1:31:45]} Bf5 {[%clk 1:23:52]} Qb3 {[%clk 1:31:52]}
c6 {[%clk 1:24:21]} Ne2 {[%clk 1:32:14]} e6 {[%clk 1:22:02]} O-O {[%clk
1:31:21]} b5 {[%clk 1:19:27]} Bxd5 {[%clk 1:27:18]} Qxd5 {[%clk 1:12:59]} Qg3
{[%clk 1:21:56]} Na6 {[%clk 1:13:05]} Nbc3 {[%clk 1:21:02]} Qd7 {[%clk 1:10:30]}
Be3 {[%clk 1:15:16]} Nc7 {[%clk 1:07:43]} Rac1 {[%clk 1:13:16]} h5 {[%clk
1:03:14]} Rfd1 {[%clk 1:11:40]} h4 {[%clk 0:57:19]} Qf3 {[%clk 1:11:29]} Be7
{[%clk 0:55:51]} Ne4 {[%clk 1:07:16]} Nd5 {[%clk 0:49:11]} Nc5 {[%clk 1:04:24]}
Qd8 {[%clk 0:48:22]} Nf4 {[%clk 0:55:15]} O-O {[%clk 0:40:26]} g3 {[%clk
0:38:57]} Rc8 {[%clk 0:35:52]} a4 {[%clk 0:31:55]} bxa4 {[%clk 0:32:43]} Nxa4
{[%clk 0:30:58]} Nxf4 {[%clk 0:27:30]} Bxf4 {[%clk 0:30:51]} Rb8 {[%clk
0:18:50]} Qxc6 {[%clk 0:28:02]} Rb4 {[%clk 0:18:56]} Nc5 {[%clk 0:22:06]} Rxd4
{[%clk 0:18:30]} Nd7 {[%clk 0:17:24]} Rxd1+ {[%clk 0:14:25]} Rxd1 {[%clk
0:17:49]} Qc8 {[%clk 0:13:08]} Qxc8 {[%clk 0:18:10]} Rxc8 {[%clk 0:13:36]} gxh4
{[%clk 0:17:36]} Be4 {[%clk 0:10:31]} Be3 {[%clk 0:14:20]} Rc7 {[%clk 0:06:19]}
Nb8 {[%clk 0:13:48]} Rb7 {[%clk 0:05:51]} Na6 {[%clk 0:11:28]} Rxb2 {[%clk
0:05:37]} Bxa7 {[%clk 0:11:30]} Ra2 {[%clk 0:03:44]} Bc5 {[%clk 0:11:53]} Bxh4
{[%clk 0:03:58]} Nb4 {[%clk 0:10:19]} Rb2 {[%clk 0:03:38]} Nd3 {[%clk 0:10:07]}
Rb5 {[%clk 0:01:45]} Bd6 {[%clk 0:06:47]} Rd5 {[%clk 0:01:22]} Nb2 {[%clk
0:07:11]} Ra5 {[%clk 0:01:33]} Nd3 {[%clk 0:02:06]} Rd5 {[%clk 0:01:30]} Nb2
{[%clk 0:02:31]} Rb5 {[%clk 0:01:00]} Nd3 {[%clk 0:02:43]} Bf3 {[%clk 0:01:07]}
Rc1 {[%clk 0:02:32]} Kh7 {[%clk 0:24:46]} Ne1 {[%clk 0:24:51]} Bd5 {[%clk
0:21:58]} Ng2 {[%clk 0:23:56]} Bxf2+ {[%clk 0:20:09]} Kxf2 {[%clk 0:24:12]} Rb2+
{[%clk 0:20:37]} Ke3 {[%clk 0:23:36]} Rxg2 {[%clk 0:20:42]} h4 {[%clk 0:23:24]}
Rg4 {[%clk 0:14:45]} Rc7 {[%clk 0:22:24]} Re4+ {[%clk 0:15:07]} Kf2 {[%clk
0:21:49]} Rf4+ {[%clk 0:14:52]} Kg3 {[%clk 0:22:13]} Rf5 {[%clk 0:15:03]} Kg4
{[%clk 0:17:26]} Bf3+ {[%clk 0:14:20]} Kg3 {[%clk 0:17:51]} Bh5 {[%clk 0:14:44]}
Rc3 {[%clk 0:16:27]} Rf1 {[%clk 0:15:12]} Kg2 {[%clk 0:15:46]} Rf4 {[%clk
0:15:28]} Kg3 {[%clk 0:15:22]} Rg4+ {[%clk 0:15:41]} Kh3 {[%clk 0:15:49]} Re4
{[%clk 0:16:05]} Rg3 {[%clk 0:14:58]} Bg6 {[%clk 0:16:10]} Kg2 {[%clk 0:13:01]}
Bf5 {[%clk 0:09:01]} Kf3 {[%clk 0:06:42]} Rxh4 {[%clk 0:09:02]} Bf8 {[%clk
0:06:55]} Be4+ {[%clk 0:08:19]} Kf2 {[%clk 0:06:21]} Bg6 {[%clk 0:08:47]} Be7
{[%clk 0:06:12]} Rd4 {[%clk 0:08:50]} Rh3+ {[%clk 0:06:00]} Kg8 {[%clk 0:09:19]}
Rg3 {[%clk 0:06:08]} Rd2+ {[%clk 0:08:35]} Ke1 {[%clk 0:05:44]} Rd5 {[%clk
0:08:33]} Re3 {[%clk 0:06:05]} Bf5 {[%clk 0:08:45]} Kf2 {[%clk 0:06:27]} Kh7
{[%clk 0:09:08]} Re1 {[%clk 0:06:46]} Rd4 {[%clk 0:09:08]} Rg1 {[%clk 0:05:05]}
Rf4+ {[%clk 0:08:41]} Kg3 {[%clk 0:04:58]} Re4 {[%clk 0:09:05]} Bd6 {[%clk
0:05:04]} g5 {[%clk 0:04:31]} Rh1+ {[%clk 0:04:19]} Kg6 {[%clk 0:04:56]} Rh8
{[%clk 0:04:33]} Rg4+ {[%clk 0:03:46]} Kf2 {[%clk 0:04:37]} Be4 {[%clk 0:02:53]}
Be7 {[%clk 0:01:56]} Kf5 {[%clk 0:03:06]} Bf6 {[%clk 0:01:50]} Kf4 {[%clk
0:03:24]} Rh2 {[%clk 0:01:17]} Rg3 {[%clk 0:03:42]} Kf1 {[%clk 0:01:12]} Rb3
{[%clk 0:03:17]} Rf2+ {[%clk 0:00:34]} Bf3 {[%clk 0:03:40]} Ra2 {[%clk 0:00:41]}
g4 {[%clk 0:03:32]} Ra1 {[%clk 0:00:31]} g3 {[%clk 0:03:06]} Kg1 {[%clk
0:00:46]} Rb2 {[%clk 0:03:02]} Ra4+ {[%clk 0:01:03]} Be4 {[%clk 0:03:26]}

[Variant "Standard"]
[Site "Europe Echecs"]

[Event "Open Cappelle-la-Grande"]
[Date "2026.02.22"]
[White "Carnicelli, Valerio"]
[Black "Toure, Ananth"]
[WhiteElo "2438"]
[BlackElo "2220"]
[Round "2.2.15"]
[Result "1-0"]
[TimeControl "40/5400+30:1800+30"]

e4 {[%clk 1:28:19]} e5 {[%clk 1:30:58]} Nf3 {[%clk 1:28:43]} Nc6 {[%clk
1:31:24]} Bc4 {[%clk 1:29:10]} Nf6 {[%clk 1:31:48]} d3 {[%clk 1:29:38]} h6
{[%clk 1:32:00]} O-O {[%clk 1:29:57]} Bc5 {[%clk 1:32:23]} c3 {[%clk 1:30:10]}
a5 {[%clk 1:30:18]} d4 {[%clk 1:27:51]} Bb6 {[%clk 0:52:26]} Nxe5 {[%clk
1:22:18]} Nxe5 {[%clk 0:52:50]} dxe5 {[%clk 1:22:46]} Nxe4 {[%clk 0:51:43]}
Bxf7+ {[%clk 1:15:55]} Kxf7 {[%clk 0:51:52]} Qd5+ {[%clk 1:16:14]} Ke8 {[%clk
0:47:29]} Qxe4 {[%clk 1:16:38]} Rf8 {[%clk 0:47:29]} Na3 {[%clk 1:12:01]} Qe7
{[%clk 0:46:40]} Be3 {[%clk 1:11:01]} Ra6 {[%clk 0:40:20]} Nb5 {[%clk 1:07:26]}
Kd8 {[%clk 0:38:27]} Rad1 {[%clk 1:05:51]} Bc5 {[%clk 0:35:47]} Bxc5 {[%clk
1:03:32]} Qxc5 {[%clk 0:36:12]} Nd4 {[%clk 1:02:22]} Re8 {[%clk 0:36:11]} Rfe1
{[%clk 1:02:23]} a4 {[%clk 0:34:48]} e6 {[%clk 0:54:51]} Qg5 {[%clk 0:28:19]} f4
{[%clk 0:51:18]} Qf6 {[%clk 0:27:09]} f5 {[%clk 0:50:41]} Rb6 {[%clk 0:26:24]}
Qc2 {[%clk 0:47:23]} Rd6 {[%clk 0:24:50]} Qxa4 {[%clk 0:44:08]} g6 {[%clk
0:09:42]} exd7 {[%clk 0:43:10]} Rxe1+ {[%clk 0:08:35]} Rxe1 {[%clk 0:43:37]}
Bxd7 {[%clk 0:08:30]} Qa8+ {[%clk 0:43:37]} Bc8 {[%clk 0:07:06]} Ne6+ {[%clk
0:43:48]} Kd7 {[%clk 0:06:53]} Nc5+ {[%clk 0:44:11]} Kc6 {[%clk 0:06:17]} Qxc8
{[%clk 0:44:16]} Kxc5 {[%clk 0:05:59]} Qxc7+ {[%clk 0:44:43]} Rc6 {[%clk
0:05:39]} Qxb7 {[%clk 0:43:41]} Kd5 {[%clk 0:05:28]}

[Variant "Standard"]
[Site "Europe Echecs"]

[Event "Open Cappelle-la-Grande"]
[Date "2026.02.22"]
[White "Midy, Robin"]
[Black "Poetsch, Hagen"]
[WhiteElo "2222"]
[BlackElo "2433"]
[Round "2.2.16"]
[Result "0-1"]
[TimeControl "40/5400+30:1800+30"]

e4 {[%clk 1:30:55]} c5 {[%clk 1:30:52]} Be2 {[%clk 1:29:53]} Nc6 {[%clk
1:29:09]} f4 {[%clk 1:29:54]} g6 {[%clk 1:29:11]} Nf3 {[%clk 1:29:54]} Bg7
{[%clk 1:29:35]} O-O {[%clk 1:29:40]} Nf6 {[%clk 1:28:33]} d3 {[%clk 1:28:53]}
d6 {[%clk 1:28:52]} a4 {[%clk 1:27:24]} O-O {[%clk 1:29:15]} Qe1 {[%clk
1:27:08]} c4 {[%clk 1:10:07]} Na3 {[%clk 1:20:32]} cxd3 {[%clk 1:09:46]} cxd3
{[%clk 1:18:24]} Na5 {[%clk 1:06:09]} Bd1 {[%clk 1:13:35]} Nb3 {[%clk 1:00:40]}
Bxb3 {[%clk 1:05:31]} Qb6+ {[%clk 1:01:05]} Be3 {[%clk 0:49:14]} Qxb3 {[%clk
1:01:29]} Nb5 {[%clk 0:39:52]} Ng4 {[%clk 0:42:55]} Ra3 {[%clk 0:33:39]} Qc2
{[%clk 0:40:30]} Bd4 {[%clk 0:16:16]} e5 {[%clk 0:39:18]} fxe5 {[%clk 0:11:45]}
Nxe5 {[%clk 0:36:07]} Nxe5 {[%clk 0:10:31]} Bxe5 {[%clk 0:34:31]} Bxe5 {[%clk
0:08:20]} dxe5 {[%clk 0:34:55]} Rc3 {[%clk 0:04:21]} Qxa4 {[%clk 0:31:55]} Nc7
{[%clk 0:04:32]} Rb8 {[%clk 0:30:53]} Nd5 {[%clk 0:04:41]} Be6 {[%clk 0:27:10]}
Nf6+ {[%clk 0:04:32]} Kg7 {[%clk 0:27:21]} Qh4 {[%clk 0:04:01]} h6 {[%clk
0:27:02]} h3 {[%clk 0:01:34]} Rbc8 {[%clk 0:10:21]} Rf3 {[%clk 0:00:41]} Rxc3
{[%clk 0:06:40]} bxc3 {[%clk 0:01:09]} Qd1+ {[%clk 0:06:10]} Kh2 {[%clk
0:01:16]} Qd2 {[%clk 0:06:29]} Rg3 {[%clk 0:00:43]} Kh8 {[%clk 0:06:34]} Nd5
{[%clk 0:00:34]} Bxd5 {[%clk 0:06:06]} Qe7 {[%clk 0:00:37]} Kg8 {[%clk 0:05:53]}
exd5 {[%clk 0:00:58]} Qf4 {[%clk 0:04:05]} d6 {[%clk 0:01:00]} h5 {[%clk
0:03:32]} h4 {[%clk 0:01:07]} Kg7 {[%clk 0:03:49]} Kh3 {[%clk 0:00:34]} Qf5+
{[%clk 0:04:05]} Kh2 {[%clk 0:01:04]} Qf6 {[%clk 0:03:22]} Qxb7 {[%clk 0:00:35]}
Qxh4+ {[%clk 0:03:37]} Rh3 {[%clk 0:00:56]} Qf4+ {[%clk 0:03:50]} Kg1 {[%clk
0:00:57]} Qc1+ {[%clk 0:03:56]} Kh2 {[%clk 0:01:15]} Qf4+ {[%clk 0:03:21]} Kg1
{[%clk 0:01:26]} Qc1+ {[%clk 0:00:35]} Kh2 {[%clk 0:01:06]} Qxc3 {[%clk
0:00:48]} Qe7 {[%clk 0:22:31]} e4 {[%clk 0:27:18]} dxe4 {[%clk 0:08:03]} Qf6
{[%clk 0:27:26]} Ra3 {[%clk 0:02:47]} Qxe7 {[%clk 0:21:57]} dxe7 {[%clk
0:03:16]} Re8 {[%clk 0:22:18]} Rxa7 {[%clk 0:03:14]} Kf6 {[%clk 0:22:44]} Kg3
{[%clk 0:02:21]} Rxe7 {[%clk 0:21:11]} Ra4 {[%clk 0:02:10]} Rb7 {[%clk 0:18:36]}
Ra3 {[%clk 0:01:44]} Rb1 {[%clk 0:17:04]} Kf4 {[%clk 0:01:29]} Rf1+ {[%clk
0:16:52]} Ke3 {[%clk 0:01:21]} Kg5 {[%clk 0:16:53]} Ke2 {[%clk 0:01:21]} Rf4
{[%clk 0:17:06]} Ke3 {[%clk 0:00:50]} Kg4 {[%clk 0:17:11]} Ra7 {[%clk 0:00:38]}
Kg3 {[%clk 0:16:10]} Ra5 {[%clk 0:00:38]} f6 {[%clk 0:14:51]} Ra8 {[%clk
0:00:34]} f5 {[%clk 0:08:52]} exf5 {[%clk 0:00:35]} Rxf5 {[%clk 0:09:16]} Ra2
{[%clk 0:00:35]} g5 {[%clk 0:08:36]} Ke4 {[%clk 0:00:34]} Rf2 {[%clk 0:08:36]}
Ra5 {[%clk 0:00:35]} Kg4 {[%clk 0:08:44]} g3 {[%clk 0:00:37]} Rg2 {[%clk
0:08:58]} Ke3 {[%clk 0:00:40]} Rxg3+ {[%clk 0:09:21]} Kf2 {[%clk 0:01:03]} Rf3+
{[%clk 0:09:37]} Kg2 {[%clk 0:01:28]} Rf4 {[%clk 0:09:57]} Ra2 {[%clk 0:01:44]}
h4 {[%clk 0:10:12]} Rb2 {[%clk 0:02:04]} h3+ {[%clk 0:10:21]} Kh2 {[%clk
0:02:28]} Kh4 {[%clk 0:10:36]} Rb8 {[%clk 0:02:24]} Rf2+ {[%clk 0:10:58]} Kg1
{[%clk 0:02:46]} Kg3 {[%clk 0:10:56]} Rb1 {[%clk 0:02:28]} Re2 {[%clk 0:10:18]}
Kh1 {[%clk 0:02:47]} g4 {[%clk 0:10:28]} Ra1 {[%clk 0:02:37]} Kf3 {[%clk
0:09:57]} Rf1+ {[%clk 0:02:30]} Rf2 {[%clk 0:10:08]} Ra1 {[%clk 0:02:49]} g3
{[%clk 0:10:08]} Ra3+ {[%clk 0:03:00]} Kg4 {[%clk 0:10:33]} Ra4+ {[%clk
0:02:41]} Rf4 {[%clk 0:10:57]} Ra1 {[%clk 0:02:59]} h2 {[%clk 0:09:56]} Kg2
{[%clk 0:03:04]} Rf2+ {[%clk 0:10:18]} Kh1 {[%clk 0:03:32]} Kh3 {[%clk 0:10:30]}
Ra3 {[%clk 0:03:38]} Rf1# {[%clk 0:10:20]}

[Variant "Standard"]
[Site "Europe Echecs"]

[Event "Open Cappelle-la-Grande"]
[Date "2026.02.22"]
[White "Wirig, Anthony"]
[Black "Pranesh M"]
[WhiteElo "2414"]
[BlackElo "2627"]
[Round "3.3.1"]
[Result "1/2-1/2"]
[TimeControl "40/5400+30:1800+30"]

Nf3 {[%clk 1:30:44]} d5 {[%clk 1:30:52]} b3 {[%clk 1:30:37]} Nf6 {[%clk
1:30:11]} Bb2 {[%clk 1:29:42]} Bg4 {[%clk 1:30:31]} e3 {[%clk 1:29:16]} e6
{[%clk 1:29:58]} h3 {[%clk 1:26:05]} Bh5 {[%clk 1:30:01]} d3 {[%clk 1:17:57]} c5
{[%clk 1:24:49]} g4 {[%clk 1:14:08]} Bg6 {[%clk 1:25:05]} Ne5 {[%clk 1:14:34]}
Nc6 {[%clk 1:24:19]} Nxg6 {[%clk 1:11:37]} hxg6 {[%clk 1:21:06]} Bg2 {[%clk
1:11:20]} Bd6 {[%clk 1:19:25]} Nd2 {[%clk 1:03:12]} Qa5 {[%clk 1:15:50]} g5
{[%clk 1:00:27]} Nh5 {[%clk 1:15:19]} a3 {[%clk 0:59:57]} Be5 {[%clk 1:11:16]}
Bxe5 {[%clk 0:57:11]} Nxe5 {[%clk 1:10:29]} O-O {[%clk 0:56:58]} Qc3 {[%clk
1:07:26]} Ra2 {[%clk 0:49:55]} Nc6 {[%clk 1:02:58]} Nf3 {[%clk 0:47:04]} d4
{[%clk 0:49:46]} Qe1 {[%clk 0:44:47]} Qxe1 {[%clk 0:42:55]} Rxe1 {[%clk
0:45:15]} Rd8 {[%clk 0:37:36]} b4 {[%clk 0:34:44]} dxe3 {[%clk 0:35:11]} fxe3
{[%clk 0:29:45]} cxb4 {[%clk 0:35:34]} axb4 {[%clk 0:30:10]} Nxb4 {[%clk
0:35:38]} Rxa7 {[%clk 0:29:53]} Nxc2 {[%clk 0:32:18]} Re2 {[%clk 0:28:10]} Nb4
{[%clk 0:32:32]} Ne5 {[%clk 0:20:51]} O-O {[%clk 0:29:59]} d4 {[%clk 0:20:08]}
Nd5 {[%clk 0:25:57]} Bxd5 {[%clk 0:17:36]} Rxd5 {[%clk 0:24:51]}

[Variant "Standard"]
[Site "Europe Echecs"]

[Event "Open Cappelle-la-Grande"]
[Date "2026.02.22"]
[White "Pranav Anand"]
[Black "Bassini, Emile"]
[WhiteElo "2606"]
[BlackElo "2409"]
[Round "3.3.2"]
[Result "1/2-1/2"]
[TimeControl "40/5400+30:1800+30"]

e4 {[%clk 1:30:10]} e5 {[%clk 1:30:53]} Nf3 {[%clk 1:30:35]} Nc6 {[%clk
1:31:16]} Bc4 {[%clk 1:31:01]} d6 {[%clk 1:31:32]} O-O {[%clk 1:31:13]} Be7
{[%clk 1:31:49]} Re1 {[%clk 1:31:38]} Nf6 {[%clk 1:30:43]} Bb3 {[%clk 1:31:56]}
O-O {[%clk 0:52:53]} c3 {[%clk 1:32:12]} Bg4 {[%clk 0:53:03]} h3 {[%clk
1:30:29]} Bh5 {[%clk 0:50:58]} d3 {[%clk 1:28:21]} d5 {[%clk 0:51:20]} exd5
{[%clk 1:18:03]} Nxd5 {[%clk 0:51:46]} g4 {[%clk 1:18:13]} Bg6 {[%clk 0:52:07]}
Nxe5 {[%clk 1:18:39]} Nxe5 {[%clk 0:52:31]} Rxe5 {[%clk 1:19:05]} Nb6 {[%clk
0:42:44]} d4 {[%clk 1:15:39]} Bd6 {[%clk 0:41:34]} Bg5 {[%clk 1:14:10]} Qd7
{[%clk 0:41:52]} Re1 {[%clk 1:13:36]} Kh8 {[%clk 0:39:26]} Nd2 {[%clk 1:06:31]}
Rae8 {[%clk 0:31:10]} Qf3 {[%clk 0:51:22]} f5 {[%clk 0:30:21]} Qg2 {[%clk
0:50:38]} c5 {[%clk 0:22:04]} Rxe8 {[%clk 0:26:53]} Rxe8 {[%clk 0:22:07]} Rd1
{[%clk 0:22:10]} cxd4 {[%clk 0:14:02]} cxd4 {[%clk 0:22:38]} h6 {[%clk 0:14:04]}
Bh4 {[%clk 0:22:54]} fxg4 {[%clk 0:14:10]} hxg4 {[%clk 0:23:12]} a5 {[%clk
0:14:38]} a4 {[%clk 0:19:26]} Bb8 {[%clk 0:07:06]} Nf3 {[%clk 0:17:51]} Be4
{[%clk 0:06:28]} Qh3 {[%clk 0:18:03]} Qc6 {[%clk 0:01:38]} Ne5 {[%clk 0:17:31]}
Bxe5 {[%clk 0:02:06]} dxe5 {[%clk 0:17:46]} Rxe5 {[%clk 0:02:07]} Qc3 {[%clk
0:05:17]} Re8 {[%clk 0:02:02]} Rd8 {[%clk 0:04:16]} Nxa4 {[%clk 0:01:44]} Rxe8+
{[%clk 0:03:28]} Qxe8 {[%clk 0:02:12]} Qxa5 {[%clk 0:03:51]} Nxb2 {[%clk
0:01:45]} Bg3 {[%clk 0:03:38]}

[Variant "Standard"]
[Site "Europe Echecs"]

[Event "Open Cappelle-la-Grande"]
[Date "2026.02.22"]
[White "Razafindratsima, Timothe"]
[Black "Enchev, Ivajlo"]
[WhiteElo "2504"]
[BlackElo "2402"]
[Round "3.3.3"]
[Result "1-0"]
[TimeControl "40/5400+30:1800+30"]

e4 {[%clk 1:30:55]} e5 {[%clk 1:30:45]} Nf3 {[%clk 1:31:18]} Nc6 {[%clk
1:31:05]} Bb5 {[%clk 1:31:42]} a6 {[%clk 1:31:23]} Ba4 {[%clk 1:32:08]} d6
{[%clk 1:30:10]} c4 {[%clk 1:30:24]} g5 {[%clk 1:24:16]} h3 {[%clk 1:24:20]} g4
{[%clk 1:13:48]} hxg4 {[%clk 1:24:30]} Bxg4 {[%clk 1:14:11]} d4 {[%clk 1:19:39]}
exd4 {[%clk 1:10:30]} Qxd4 {[%clk 1:15:30]} Qf6 {[%clk 1:10:24]} Be3 {[%clk
0:53:55]} Bg7 {[%clk 1:04:57]} Nc3 {[%clk 0:44:16]} Bxf3 {[%clk 0:44:10]} Qxf6
{[%clk 0:44:35]} Nxf6 {[%clk 0:43:55]} gxf3 {[%clk 0:44:57]} O-O-O {[%clk
0:42:31]} Ke2 {[%clk 0:42:50]} Ne5 {[%clk 0:36:25]} Bb3 {[%clk 0:42:19]} h5
{[%clk 0:33:59]} f4 {[%clk 0:36:39]} Ned7 {[%clk 0:22:57]} c5 {[%clk 0:33:16]}
Nxc5 {[%clk 0:21:02]} Bxc5 {[%clk 0:33:42]} dxc5 {[%clk 0:21:28]} e5 {[%clk
0:34:10]} Rhe8 {[%clk 0:10:21]} Bxf7 {[%clk 0:28:57]} Re7 {[%clk 0:10:18]} Bxh5
{[%clk 0:29:18]} Rd4 {[%clk 0:10:01]} Kf3 {[%clk 0:28:43]} Nd7 {[%clk 0:04:07]}
Rad1 {[%clk 0:23:44]} Bxe5 {[%clk 0:03:47]} fxe5 {[%clk 0:24:09]} Nxe5+ {[%clk
0:04:02]} Kg2 {[%clk 0:24:27]} Rg7+ {[%clk 0:02:47]} Kf1 {[%clk 0:24:49]} b5
{[%clk 0:02:29]} Be2 {[%clk 0:24:00]} Rf7 {[%clk 0:01:45]} Rh5 {[%clk 0:17:54]}
Nd7 {[%clk 0:01:21]} Rxd4 {[%clk 0:18:18]} cxd4 {[%clk 0:01:49]} Ne4 {[%clk
0:18:42]} Kb7 {[%clk 0:00:40]} Rd5 {[%clk 0:18:38]}

[Variant "Standard"]
[Site "Europe Echecs"]

[Event "Open Cappelle-la-Grande"]
[Date "2026.02.22"]
[White "Rohith Krishna S"]
[Black "Niedbala, Bartlomiej"]
[WhiteElo "2484"]
[BlackElo "2377"]
[Round "3.3.4"]
[Result "1-0"]
[TimeControl "40/5400+30:1800+30"]

d4 {[%clk 1:30:42]} Nf6 {[%clk 1:28:46]} c4 {[%clk 1:31:04]} e6 {[%clk 1:28:38]}
Nf3 {[%clk 1:31:28]} d5 {[%clk 1:29:06]} Nc3 {[%clk 1:31:50]} h6 {[%clk
1:29:20]} Bf4 {[%clk 1:32:12]} Bd6 {[%clk 1:28:59]} Bxd6 {[%clk 1:32:34]} Qxd6
{[%clk 1:29:25]} e3 {[%clk 1:32:56]} O-O {[%clk 1:27:26]} Rc1 {[%clk 1:33:20]}
b6 {[%clk 1:17:42]} cxd5 {[%clk 1:17:22]} Nxd5 {[%clk 1:17:17]} Qc2 {[%clk
1:01:50]} Bb7 {[%clk 0:53:59]} Nxd5 {[%clk 0:51:03]} Qxd5 {[%clk 0:52:10]} Bc4
{[%clk 0:51:08]} Qa5+ {[%clk 0:47:00]} Qc3 {[%clk 0:49:50]} Qxc3+ {[%clk
0:47:10]} Rxc3 {[%clk 0:50:12]} Rc8 {[%clk 0:47:21]} O-O {[%clk 0:44:33]} c5
{[%clk 0:38:31]} dxc5 {[%clk 0:41:17]} Rxc5 {[%clk 0:38:23]} Rd1 {[%clk
0:39:52]} Nc6 {[%clk 0:33:22]} Rd7 {[%clk 0:36:30]} Rd8 {[%clk 0:32:14]} Rxb7
{[%clk 0:36:07]} Rxc4 {[%clk 0:32:40]} h4 {[%clk 0:36:32]} Rxc3 {[%clk 0:30:18]}
bxc3 {[%clk 0:36:57]} Rc8 {[%clk 0:22:59]} h5 {[%clk 0:34:33]} Kf8 {[%clk
0:19:43]} g4 {[%clk 0:34:06]} Ke8 {[%clk 0:19:12]} Kg2 {[%clk 0:34:16]} Kf8
{[%clk 0:12:42]} Kg3 {[%clk 0:34:08]} Ke8 {[%clk 0:13:03]} Kh3 {[%clk 0:19:36]}
Kf8 {[%clk 0:12:36]} Kg2 {[%clk 0:16:52]} Ke8 {[%clk 0:12:52]} Kg3 {[%clk
0:17:20]} Kf8 {[%clk 0:13:18]} Kf4 {[%clk 0:17:43]} Ke8 {[%clk 0:12:41]} g5
{[%clk 0:14:20]} hxg5+ {[%clk 0:10:24]} Nxg5 {[%clk 0:14:47]} Nd8 {[%clk
0:07:56]} Rxa7 {[%clk 0:15:09]} Rxc3 {[%clk 0:08:01]} Ne4 {[%clk 0:15:25]} Rd3
{[%clk 0:03:10]} Ra6 {[%clk 0:14:23]} Ke7 {[%clk 0:02:20]} Rxb6 {[%clk 0:12:49]}
f5 {[%clk 0:02:42]} Ng5 {[%clk 0:11:58]} Rd2 {[%clk 0:02:14]} Ra6 {[%clk
0:10:48]} Rxf2+ {[%clk 0:01:30]} Ke5 {[%clk 0:11:11]} Rd2 {[%clk 0:00:32]} Nxe6
{[%clk 0:08:52]} Nxe6 {[%clk 0:00:31]} Rxe6+ {[%clk 0:09:17]} Kf7 {[%clk
0:00:40]} Ra6 {[%clk 0:06:07]} Rd3 {[%clk 0:19:41]} Kf4 {[%clk 0:35:48]} Rd5
{[%clk 0:15:36]} a4 {[%clk 0:35:40]} Rc5 {[%clk 0:13:39]} a5 {[%clk 0:30:53]}
Rb5 {[%clk 0:13:22]} Ra8 {[%clk 0:30:49]} Kf6 {[%clk 0:09:08]} a6 {[%clk
0:30:24]} Rb4+ {[%clk 0:08:14]} Kf3 {[%clk 0:30:43]} Ra4 {[%clk 0:08:41]} a7
{[%clk 0:29:54]} Kf7 {[%clk 0:03:58]} Ke2 {[%clk 0:29:48]} Ra3 {[%clk 0:03:43]}
Kf2 {[%clk 0:27:10]} Ra1 {[%clk 0:01:32]} Kg3 {[%clk 0:27:27]} Ra4 {[%clk
0:00:35]} Kf3 {[%clk 0:27:51]} Ra6 {[%clk 0:00:41]} Kf4 {[%clk 0:28:13]} Ra5
{[%clk 0:00:56]} Kg5 {[%clk 0:28:32]} Ra4 {[%clk 0:00:35]} Kxf5 {[%clk 0:28:53]}
Ra5+ {[%clk 0:00:52]} Kf4 {[%clk 0:29:16]} Ra4+ {[%clk 0:01:09]} e4 {[%clk
0:29:40]} Ra5 {[%clk 0:01:30]} e5 {[%clk 0:30:03]}

[Variant "Standard"]
[Site "Europe Echecs"]